bitfinex-derivatives/quotes_BTCF0:USTF0_20241213
["timestamp","ask_amount","ask_price","bid_price","bid_amount"]
[1734127870556,0.29974215,101260.0,101250.0,0.0005]
[1734127870755,0.29974215,101260.0,101240.0,0.9108]
[1734127870960,0.11350205,101250.0,101240.0,0.9108]
[1734127871165,0.12576585,101250.0,101240.0,0.91870401]
[1734127871366,0.11350205,101250.0,101240.0,0.91870401]
[1734127871768,0.11350205,101250.0,101240.0,0.91920401]
[1734127872767,0.12576314,101250.0,101240.0,0.91870401]
[1734127873764,0.12576314,101250.0,101240.0,0.91920401]
[1734127874274,0.12576621,101250.0,101240.0,0.91920401]
[1734127874570,0.13570607,101250.0,101240.0,0.91920401]
[1734127874872,0.13570607,101250.0,101240.0,0.91870401]
[1734127877572,0.12344191,101250.0,101240.0,0.91870401]
[1734127877768,0.13570692,101250.0,101240.0,0.91870401]
[1734127880671,0.12344191,101250.0,101240.0,0.91870401]
[1734127880869,0.13571689,101250.0,101240.0,0.91870401]
[1734127883772,0.12344191,101250.0,101240.0,0.91870401]
[1734127883973,0.13573445,101250.0,101240.0,0.91870401]
[1734127885177,0.14315674,101250.0,101240.0,0.91870401]
[1734127890983,0.07901969,101250.0,101240.0,0.91870401]
[1734127891179,0.14315674,101250.0,101240.0,0.91870401]
[1734127892979,0.29093374,101250.0,101240.0,1.44970664]
[1734127893372,0.29093374,101250.0,101240.0,1.75981579]
[1734127893578,0.29093374,101250.0,101240.0,1.44970664]
[1734127894383,0.46826607,101250.0,101240.0,1.75951319]
[1734127894878,0.29093374,101250.0,101240.0,1.44970664]
[1734127895483,0.46826607,101250.0,101240.0,1.76030832]
[1734127895985,0.40412902,101250.0,101240.0,1.76030832]
[1734127896180,0.46826607,101250.0,101240.0,1.76030832]
[1734127897377,0.46826607,101250.0,101240.0,1.76026587]
[1734127897578,0.46946778,101250.0,101240.0,1.44970664]
[1734127898384,0.46946778,101250.0,101240.0,1.15488366]
[1734127898576,0.29213545,101250.0,101240.0,1.15488366]
[1734127899081,0.2279984,101250.0,101240.0,1.15488366]
[1734127899383,0.29213545,101250.0,101240.0,1.15488366]
[1734127899784,0.29213545,101250.0,101240.0,0.28617965]
[1734127900185,0.14435845,101250.0,101240.0,0.46385168]
[1734127900377,0.19236354,101250.0,101240.0,0.46385168]
[1734127900871,0.49236354,101250.0,101240.0,0.30424601]
[1734127901076,0.04937,101240.0,101230.0,0.35380457]
[1734127901274,0.32242574,101240.0,101230.0,0.35380457]
[1734127901681,0.32362745,101240.0,101230.0,0.35380457]
[1734127901881,0.71398901,101240.0,101230.0,0.35380457]
[1734127904191,0.71398901,101240.0,101220.0,0.8608]
[1734127904383,0.13966016,101230.0,101220.0,0.8608]
[1734127904582,0.12581654,101230.0,101220.0,0.8608]
[1734127904783,0.12701825,101230.0,101220.0,0.8608]
[1734127905989,0.11471376,101230.0,101220.0,0.8608]
[1734127906189,0.12701493,101230.0,101220.0,0.8608]
[1734127906901,0.11471376,101230.0,101220.0,0.8608]
[1734127907391,0.11471376,101230.0,101220.0,0.86870401]
[1734127911288,0.1270041,101230.0,101220.0,0.86870401]
[1734127911495,0.1270041,101230.0,101220.0,0.3608]
[1734127911692,0.04938,101220.0,101210.0,0.4238]
[1734127911892,0.14541705,101220.0,101210.0,0.394]
[1734127912197,0.14541705,101220.0,101210.0,0.3613]
[1734127912388,0.38355659,101220.0,101210.0,0.3613]
[1734127912790,0.29628421,101220.0,101210.0,0.3613]
[1734127912987,0.30857041,101220.0,101210.0,0.3608]
[1734127913188,0.37270746,101220.0,101210.0,0.3608]
[1734127913387,0.36042126,101220.0,101210.0,0.3608]
[1734127913605,0.11352105,101210.0,101200.0,0.9558]
[1734127913797,0.12700626,101210.0,101200.0,0.96370401]
[1734127913997,0.11472276,101210.0,101200.0,0.96370401]
[1734127914298,0.11472276,101210.0,101200.0,0.585]
[1734127914897,0.11472276,101210.0,101200.0,0.5855]
[1734127915605,0.47552276,101210.0,101190.0,0.5]
[1734127915902,0.049394,101190.0,101180.0,0.8911]
[1734127916105,0.12580456,101190.0,101180.0,0.89900401]
[1734127916897,0.12700627,101190.0,101180.0,0.89900401]
[1734127917297,0.049399,101180.0,101170.0,0.00088]
[1734127917492,0.049404,101170.0,101160.0,1.01358131]
[1734127917693,0.06166244,101170.0,101160.0,1.01358131]
[1734127917896,0.1270012,101170.0,101160.0,1.45734827]
[1734127918195,0.11474276,101170.0,101160.0,1.45734827]
[1734127918406,0.47554276,101170.0,101160.0,1.09654827]
[1734127918599,0.48779141,101170.0,101160.0,1.09654827]
[1734127918907,0.48779141,101170.0,101160.0,1.12854827]
[1734127919096,0.47554276,101170.0,101160.0,1.12854827]
[1734127920002,0.47554276,101170.0,101160.0,1.09654827]
[1734127920204,0.47554276,101170.0,101160.0,0.58864426]
[1734127920606,0.47550276,101170.0,101160.0,0.58864426]
[1734127921309,0.41136571,101170.0,101160.0,0.58864426]
[1734127921501,0.47550276,101170.0,101160.0,0.58864426]
[1734127923003,0.48774208,101170.0,101160.0,0.58864426]
[1734127923707,0.48772053,101170.0,101160.0,0.58864426]
[1734127924103,0.48772055,101170.0,101160.0,0.58864426]
[1734127924306,0.48524997,101170.0,101150.0,0.65115658]
[1734127924500,0.50027874,101160.0,101150.0,0.65115658]
[1734127924697,0.48655798,101160.0,101150.0,0.65906059]
[1734127924892,0.51835969,101160.0,101150.0,0.65906059]
[1734127925298,0.55015969,101160.0,101150.0,0.65906059]
[1734127927211,0.91542473,101160.0,101150.0,0.65906059]
[1734127927505,0.91542473,101160.0,101150.0,0.00790401]
[1734127928604,0.049414,101150.0,101140.0,0.612119]
[1734127928807,0.47435105,101150.0,101140.0,0.612119]
[1734127929010,0.00120171,101150.0,101140.0,1.04705605]
[1734127929207,0.00120171,101150.0,101140.0,1.91785605]
[1734127929402,0.36200171,101150.0,101140.0,1.91785605]
[1734127930001,0.36200171,101150.0,101140.0,0.71785605]
[1734127930203,0.37419738,101150.0,101140.0,0.71785605]
[1734127930408,0.36200171,101150.0,101140.0,0.71785605]
[1734127930597,0.36200171,101150.0,101140.0,0.72576006]
[1734127931208,0.00120171,101150.0,101140.0,1.07865605]
[1734127931504,0.00120171,101150.0,101140.0,1.08656006]
[1734127931700,0.00120171,101150.0,101140.0,1.07865605]
[1734127933405,0.05061571,101150.0,101140.0,1.07865605]
[1734127934112,0.05061571,101150.0,101140.0,1.08656006]
[1734127934305,0.05061571,101150.0,101140.0,1.07865605]
[1734127934510,0.05061571,101150.0,101140.0,1.08656006]
[1734127934714,0.05061571,101150.0,101140.0,1.07865605]
[1734127934899,0.05061571,101150.0,101140.0,1.08656006]
[1734127935104,0.05061571,101150.0,101140.0,1.07865605]
[1734127937012,0.05061571,101150.0,101140.0,1.07915605]
[1734127937211,0.00120171,101150.0,101140.0,1.07915605]
[1734127938006,0.00120171,101150.0,101140.0,1.07865605]
[1734127938407,0.00120171,101150.0,101140.0,1.08656006]
[1734127939004,0.00120171,101150.0,101140.0,1.08706006]
[1734127939210,0.01833964,101150.0,101140.0,1.08706006]
[1734127939413,0.02346321,101150.0,101140.0,1.08706006]
[1734127939615,0.00120171,101150.0,101140.0,1.07915605]
[1734127940005,0.00120171,101150.0,101140.0,2.27915605]
[1734127940607,0.01219567,101160.0,101140.0,2.57915605]
[1734127940815,0.0171373,101160.0,101150.0,0.43493705]
[1734127941012,0.06159967,101170.0,101150.0,0.43493705]
[1734127941214,0.06159967,101170.0,101160.0,0.98593705]
[1734127943222,0.06159967,101170.0,101160.0,0.98601294]
[1734127943420,0.049404,101170.0,101160.0,0.98601294]
[1734127943918,0.049404,101170.0,101160.0,1.01821294]
[1734127944317,0.049404,101170.0,101160.0,1.04950623]
[1734127944921,0.45826053,101180.0,101160.0,1.04950623]
[1734127945120,0.0138751,101170.0,101160.0,1.04950623]
[1734127945324,0.53447854,101180.0,101160.0,1.04950623]
[1734127945622,0.0138799,101170.0,101160.0,1.04950623]
[1734127945820,0.53447854,101180.0,101170.0,0.01]
[1734127946014,0.0595425,101180.0,101170.0,0.10550623]
[1734127946214,0.0595425,101180.0,101170.0,0.47421024]
[1734127946411,0.0595425,101180.0,101170.0,0.87870401]
[1734127947024,0.14750188,101180.0,101170.0,0.97421024]
[1734127947318,0.0096405,101180.0,101170.0,0.97421024]
[1734127947526,0.35189126,101190.0,101170.0,0.97421024]
[1734127947715,0.23479788,101190.0,101180.0,0.0638]
[1734127947916,0.08845938,101190.0,101180.0,0.0638]
[1734127948111,0.08845938,101190.0,101180.0,0.0942]
[1734127948429,0.08845938,101190.0,101180.0,0.69970623]
[1734127949427,0.55738638,101200.0,101180.0,0.69970623]
[1734127949428,0.64584576,101200.0,101180.0,0.69970623]
[1734127949717,0.01393995,101190.0,101180.0,0.69970623]
[1734127949919,0.0005,101190.0,101180.0,0.69970623]
[1734127950726,0.0005,101190.0,101180.0,1.06050623]
[1734127950915,0.01277278,101190.0,101180.0,1.06050623]
[1734127951116,0.00991196,101200.0,101190.0,0.01]
[1734127951322,0.01720837,101200.0,101190.0,0.46630623]
[1734127951524,0.01226853,101200.0,101190.0,0.46630623]
[1734127951719,0.01226853,101200.0,101190.0,0.96630623]
[1734127951919,0.01226853,101200.0,101190.0,0.97421024]
[1734127952719,0.16796269,101210.0,101190.0,0.97421024]
[1734127952720,0.18023122,101210.0,101190.0,0.97421024]
[1734127953028,0.19016644,101210.0,101200.0,0.12720623]
[1734127953233,0.19016644,101210.0,101200.0,0.15730623]
[1734127953423,0.18868313,101210.0,101200.0,0.15730623]
[1734127953625,0.18868313,101210.0,101200.0,0.65730623]
[1734127953820,0.02220375,101210.0,101200.0,0.66730623]
[1734127954917,0.01043522,101210.0,101200.0,0.66730623]
[1734127955120,0.02761663,101210.0,101200.0,0.66730623]
[1734127955320,0.02267708,101210.0,101200.0,0.66730623]
[1734127956133,0.02267708,101210.0,101200.0,0.69780623]
[1734127956432,0.01043522,101210.0,101200.0,0.69780623]
[1734127956629,0.02761079,101210.0,101200.0,0.69780623]
[1734127956837,0.02267124,101210.0,101200.0,0.69780623]
[1734127957336,0.01043522,101210.0,101200.0,0.69780623]
[1734127958143,0.05981922,101210.0,101200.0,0.69780623]
[1734127965344,0.05981922,101210.0,101200.0,0.69772574]
[1734127966746,0.05981922,101210.0,101200.0,0.66645826]
[1734127968252,0.05931922,101210.0,101200.0,0.67436227]
[1734127971551,0.1477786,101210.0,101200.0,0.67436227]
[1734127975551,0.1477786,101210.0,101200.0,0.90989187]
[1734127976050,0.8808598,101220.0,101200.0,1.56503828]
[1734127976051,0.31391973,101220.0,101200.0,1.56503828]
[1734127976260,0.11757743,101220.0,101210.0,0.71930467]
[1734127976443,0.34605214,101230.0,101210.0,0.99233566]
[1734127976642,0.19908984,101230.0,101220.0,0.92495826]
[1734127977152,0.19958984,101230.0,101220.0,0.93495826]
[1734127977361,0.11851184,101230.0,101220.0,0.93495826]
[1734127977654,0.11851184,101230.0,101220.0,0.96495826]
[1734127977953,0.11851184,101230.0,101220.0,0.99635826]
[1734127978154,0.11801184,101230.0,101220.0,1.02885826]
[1734127978351,0.11801184,101230.0,101220.0,1.59770202]
[1734127978552,0.11801184,101230.0,101220.0,1.38736293]
[1734127978752,0.11801184,101230.0,101220.0,1.32320467]
[1734127979159,0.11851184,101230.0,101220.0,1.89834803]
[1734127979460,0.11851184,101230.0,101220.0,1.32943651]
[1734127980058,0.11801184,101230.0,101220.0,1.09301652]
[1734127980359,0.64334877,101250.0,101230.0,0.01]
[1734127980561,0.64334877,101250.0,101240.0,0.06415826]
[1734127980762,0.6217293,101250.0,101240.0,0.56415826]
[1734127981054,0.2609293,101250.0,101240.0,0.06415826]
[1734127981255,0.2609293,101250.0,101240.0,0.56415826]
[1734127981456,0.2609293,101250.0,101240.0,0.92495826]
[1734127981657,0.2609293,101250.0,101240.0,0.95765826]
[1734127982158,0.2609293,101250.0,101240.0,2.15765826]
[1734127982657,0.2609293,101250.0,101240.0,0.95765826]
[1734127983162,0.1801623,101250.0,101240.0,2.15765826]
[1734127983461,0.1469623,101250.0,101240.0,2.15765826]
[1734127983650,0.1469623,101250.0,101240.0,2.18955826]
[1734127984858,0.1469623,101250.0,101240.0,2.22075826]
[1734127985058,0.1474623,101250.0,101240.0,2.22075826]
[1734127985961,0.0005,101250.0,101240.0,2.22075826]
[1734127987252,0.2110623,101270.0,101240.0,2.52075826]
[1734127987451,0.2110623,101270.0,101260.0,0.42495826]
[1734127987665,0.2110623,101270.0,101260.0,0.43495826]
[1734127987958,0.1469623,101270.0,101260.0,0.43495826]
[1734127988159,0.1469623,101270.0,101260.0,0.93495826]
[1734127988456,0.1469623,101270.0,101260.0,0.43495826]
[1734127988657,0.1469623,101270.0,101260.0,1.69625826]
[1734127989053,0.1469623,101270.0,101260.0,2.19625826]
[1734127989359,0.1469623,101270.0,101260.0,2.22738996]
[1734127991153,0.09034316,101280.0,101260.0,2.22738996]
[1734127991359,0.09034316,101280.0,101270.0,0.09528996]
[1734127991949,0.09034316,101280.0,101270.0,0.59528996]
[1734127992147,0.45114316,101280.0,101270.0,0.59528996]
[1734127992352,0.45114316,101280.0,101270.0,0.5]
[1734127992552,0.04936,101270.0,101260.0,0.51]
[1734127992856,0.44056,101270.0,101260.0,0.51]
[1734127993048,0.47126,101270.0,101260.0,0.51]
[1734127998165,0.47176,101270.0,101260.0,0.51]
[1734127999153,0.47126,101270.0,101260.0,0.51]
[1734128000055,0.47176,101270.0,101260.0,0.51]
[1734128002453,0.49353794,101270.0,101260.0,0.51]
[1734128003151,0.49303794,101270.0,101260.0,0.51]
[1734128003552,0.64000024,101270.0,101260.0,0.51]
[1734128003956,0.6182223,101270.0,101260.0,0.51]
[1734128005562,0.64006158,101270.0,101260.0,0.51]
[1734128007258,0.66687335,101270.0,101260.0,0.51]
[1734128007764,0.66687335,101270.0,101260.0,0.60528996]
[1734128008066,0.5571223,101270.0,101260.0,0.65465496]
[1734128008267,0.1963223,101270.0,101260.0,0.68525496]
[1734128009060,0.1963223,101270.0,101260.0,0.71635496]
[1734128009264,0.1963223,101270.0,101260.0,0.71636855]
[1734128009468,0.1963223,101270.0,101260.0,0.74646855]
[1734128010368,0.1963223,101270.0,101260.0,0.71524234]
[1734128010869,0.1469623,101270.0,101260.0,0.71524234]
[1734128011074,0.1469623,101270.0,101260.0,0.72314635]
[1734128011264,0.1469623,101270.0,101260.0,0.72314338]
[1734128011565,0.1469623,101270.0,101260.0,0.75437742]
[1734128011870,0.1469623,101270.0,101260.0,1.95437742]
[1734128012362,0.1963223,101270.0,101260.0,1.92427742]
[1734128013770,0.5571223,101270.0,101260.0,1.92427742]
[1734128020372,0.73276237,101270.0,101260.0,1.92427742]
[1734128020773,0.5571223,101270.0,101260.0,1.92427742]
[1734128021075,0.5571223,101270.0,101260.0,2.10168454]
[1734128021264,0.73276237,101270.0,101260.0,2.10168454]
[1734128022268,0.5571223,101270.0,101260.0,2.00604447]
[1734128022575,0.43412243,101270.0,101260.0,0.5]
[1734128022779,0.41016,101270.0,101260.0,0.5]
[1734128023067,0.73564183,101270.0,101260.0,0.5]
[1734128023273,0.67353342,101270.0,101260.0,0.5]
[1734128024773,1.03433342,101270.0,101260.0,0.5]
[1734128025266,1.1056794,101270.0,101250.0,0.68747022]
[1734128025470,0.76096258,101260.0,101250.0,0.68747022]
[1734128025678,0.5252171,101260.0,101250.0,0.68747022]
[1734128026175,0.56987341,101260.0,101250.0,0.67747022]
[1734128026475,0.86987341,101260.0,101250.0,0.14660571]
[1734128026678,0.92040222,101260.0,101250.0,0.14660571]
[1734128027070,0.92040222,101260.0,101230.0,1.03263327]
[1734128027270,0.770975,101240.0,101230.0,1.03263327]
[1734128029179,0.770975,101240.0,101230.0,1.03313327]
[1734128030783,0.770975,101240.0,101230.0,0.79669281]
[1734128031574,0.770975,101240.0,101230.0,0.50198132]
[1734128032180,0.78061046,101240.0,101230.0,0.50198132]
[1734128034082,0.87591887,101240.0,101230.0,0.50198132]
[1734128034286,0.93971887,101240.0,101230.0,0.50198132]
[1734128035892,1.08713382,101240.0,101230.0,0.50198132]
[1734128037586,1.08713382,101240.0,101230.0,0.46300547]
[1734128040080,1.08713382,101240.0,101230.0,0.46250547]
[1734128041077,1.2048266,101240.0,101230.0,0.46250547]
[1734128041281,0.04938,101230.0,101220.0,0.5005]
[1734128041482,0.59204137,101230.0,101220.0,0.5005]
[1734128042179,0.59204137,101230.0,101220.0,0.5]
[1734128043192,0.59204137,101230.0,101220.0,0.5005]
[1734128044191,0.95284137,101230.0,101220.0,0.5]
[1734128045190,0.95284137,101230.0,101220.0,0.5005]
[1734128048100,0.95284137,101230.0,101220.0,0.5]
[1734128048806,0.23124137,101230.0,101220.0,0.5]
[1734128049100,0.95284137,101230.0,101220.0,0.5]
[1734128049304,0.23124137,101230.0,101220.0,0.5]
[1734128049509,0.95284137,101230.0,101220.0,0.5]
[1734128051303,0.835145,101230.0,101220.0,0.5]
[1734128051708,0.77098,101230.0,101220.0,0.564165]
[1734128052010,0.77098,101230.0,101220.0,0.649865]
[1734128052207,0.77098,101230.0,101220.0,0.685965]
[1734128052998,0.04938,101230.0,101220.0,0.69386901]
[1734128053205,0.74388271,101240.0,101220.0,0.685965]
[1734128053509,0.74388271,101240.0,101230.0,0.064165]
[1734128054016,0.68521877,101240.0,101230.0,0.064165]
[1734128054306,0.68521877,101240.0,101230.0,1.764165]
[1734128054805,0.68521877,101240.0,101230.0,2.134965]
[1734128054806,0.26540631,101240.0,101230.0,2.134965]
[1734128055010,0.14741495,101240.0,101230.0,2.37140546]
[1734128055212,0.14741495,101240.0,101230.0,2.93761098]
[1734128055505,0.14741495,101240.0,101230.0,2.96628277]
[1734128055708,0.13951094,101240.0,101230.0,2.96628277]
[1734128055909,0.16736336,101250.0,101230.0,2.96628277]
[1734128056104,0.16736336,101250.0,101240.0,0.17241272]
[1734128056704,0.16736336,101250.0,101240.0,0.67241272]
[1734128057708,0.52816336,101250.0,101240.0,0.6183]
[1734128068614,0.11799136,101250.0,101240.0,0.71367477]
[1734128069012,0.11799136,101250.0,101240.0,1.07447477]
[1734128069311,0.2260183,101270.0,101260.0,0.01]
[1734128069515,0.2260183,101270.0,101260.0,0.10537477]
[1734128069714,0.2260183,101270.0,101260.0,0.51553977]
[1734128069915,0.2260183,101270.0,101260.0,1.08823977]
[1734128070115,0.23594139,101270.0,101260.0,1.08823977]
[1734128072721,0.2260183,101270.0,101260.0,1.12643977]
[1734128073112,0.049363,101270.0,101260.0,1.12643977]
[1734128074318,0.06212811,101270.0,101260.0,1.12643977]
[1734128074515,0.049863,101270.0,101260.0,1.12643977]
[1734128074911,0.0005,101270.0,101260.0,2.32643977]
[1734128075223,0.01770208,101270.0,101260.0,2.32643977]
[1734128075412,0.01276549,101270.0,101260.0,2.32643977]
[1734128076425,0.0005,101270.0,101260.0,2.32643977]
[1734128077317,0.01770165,101270.0,101260.0,2.32643977]
[1734128077519,0.01276549,101270.0,101260.0,2.32643977]
[1734128080123,0.01276887,101270.0,101260.0,2.32643977]
[1734128081328,0.01226887,101270.0,101260.0,2.32643977]
[1734128084341,0.01226887,101270.0,101260.0,2.56288023]
[1734128084539,0.01226887,101270.0,101260.0,1.36288023]
[1734128085036,0.01226887,101270.0,101260.0,2.56288023]
[1734128086135,0.42242887,101270.0,101260.0,0.79580546]
[1734128086434,0.41016,101270.0,101260.0,0.89118023]
[1734128086633,0.41016,101270.0,101260.0,2.09118023]
[1734128086634,0.48296,101270.0,101260.0,2.09118023]
[1734128087635,0.48296,101270.0,101260.0,1.94644046]
[1734128087838,0.48296,101270.0,101260.0,1.93644046]
[1734128088232,0.57833477,101270.0,101260.0,0.73644046]
[1734128088440,0.57833477,101270.0,101260.0,0.23644046]
[1734128088645,0.48296,101270.0,101260.0,0.23644046]
[1734128090840,0.049365,101260.0,101250.0,0.51]
[1734128091040,0.410165,101260.0,101250.0,0.51]
[1734128095842,0.55759112,101260.0,101250.0,0.51]
[1734128100340,0.59599112,101260.0,101250.0,0.51]
[1734128101641,0.59599112,101260.0,101250.0,0.60537477]
[1734128102542,0.448565,101260.0,101250.0,0.60537477]
[1734128102946,0.53703281,101260.0,101250.0,0.60537477]
[1734128103246,0.448565,101260.0,101250.0,0.01]
[1734128103744,0.04937,101250.0,101240.0,0.5]
[1734128103950,0.58084477,101250.0,101240.0,0.5]
[1734128104145,0.049375,101240.0,101230.0,1.04187005]
[1734128104343,0.448875,101240.0,101230.0,1.04137005]
[1734128105250,0.448875,101240.0,101230.0,1.04187005]
[1734128105451,0.54424977,101240.0,101230.0,1.04187005]
[1734128105646,0.54424977,101240.0,101230.0,0.53187005]
[1734128105853,0.84424977,101240.0,101230.0,0.29542959]
[1734128106352,0.84424977,101240.0,101230.0,0.29492959]
[1734128107153,0.54424977,101240.0,101230.0,0.29492959]
[1734128107349,0.54424977,101240.0,101230.0,0.26465459]
[1734128107552,0.84424977,101240.0,101220.0,0.34208632]
[1734128107851,0.049384,101220.0,101210.0,0.92329028]
[1734128108053,0.49847238,101220.0,101210.0,1.71]
[1734128108261,0.53767238,101220.0,101210.0,1.71]
[1734128108756,0.53767238,101220.0,101210.0,0.51]
[1734128110466,0.53767238,101220.0,101210.0,0.559389]
[1734128110656,0.53767238,101220.0,101210.0,0.51]
[1734128111562,0.54992193,101220.0,101210.0,0.51]
[1734128112253,0.54992064,101220.0,101210.0,0.51]
[1734128112454,0.55956802,101220.0,101210.0,0.51]
[1734128113370,0.55956825,101220.0,101210.0,0.51]
[1734128114257,0.54731976,101220.0,101210.0,0.51]
[1734128117264,0.54731976,101220.0,101210.0,0.5105]
[1734128118261,0.54731976,101220.0,101210.0,0.51]
[1734128119467,0.54731976,101220.0,101210.0,0.5105]
[1734128120061,0.50811976,101220.0,101210.0,0.5105]
[1734128120261,0.50811976,101220.0,101210.0,0.635789]
[1734128121968,0.50811976,101220.0,101210.0,0.73116377]
[1734128122172,0.50811976,101220.0,101210.0,0.76746377]
[1734128122672,0.50811976,101220.0,101210.0,1.96746377]
[1734128124264,0.50811976,101220.0,101210.0,1.96696377]
[1734128126476,0.41983138,101220.0,101210.0,1.96696377]
[1734128128677,0.3608,101220.0,101210.0,1.96696377]
[1734128131178,0.56714432,101230.0,101220.0,0.01]
[1734128131776,0.56714432,101230.0,101220.0,0.60537477]
[1734128133481,0.74379962,101230.0,101220.0,0.60537477]
[1734128134274,0.69441662,101230.0,101220.0,0.60537477]
[1734128134473,0.27519801,101230.0,101220.0,0.96617477]
[1734128134677,0.27519801,101230.0,101220.0,1.23673786]
[1734128134976,0.21672746,101230.0,101220.0,1.23673786]
[1734128135175,0.21672746,101230.0,101220.0,1.23675229]
[1734128135679,0.21672746,101230.0,101220.0,0.87595229]
[1734128135980,0.21669552,101230.0,101220.0,0.9661892]
[1734128136180,0.12805071,101230.0,101220.0,0.9661892]
[1734128136479,0.21664256,101230.0,101220.0,0.9661892]
[1734128136887,0.21664256,101230.0,101220.0,0.93493772]
[1734128137386,0.20682854,101230.0,101220.0,0.93493765]
[1734128138680,0.20682854,101230.0,101220.0,0.96618902]
[1734128141281,0.20682854,101230.0,101220.0,2.16618902]
[1734128142373,0.08859185,101230.0,101220.0,2.16618902]
[1734128143779,0.13797185,101230.0,101220.0,2.0708]
[1734128143977,0.49877185,101230.0,101220.0,0.51]
[1734128144279,0.44698,101230.0,101220.0,0.51]
[1734128144580,0.44698,101230.0,101220.0,1.71]
[1734128147890,0.71211399,101230.0,101220.0,1.88733526]
[1734128151283,0.71211399,101230.0,101220.0,1.98272428]
[1734128152380,0.60642031,101230.0,101220.0,1.98272428]
[1734128153891,0.60642031,101230.0,101220.0,1.88733526]
[1734128154488,0.60642031,101230.0,101220.0,1.71]
[1734128154986,0.60642031,101230.0,101220.0,0.51]
[1734128155193,0.5941273,101230.0,101220.0,0.51]
[1734128155388,0.6326273,101230.0,101220.0,0.51]
[1734128157091,0.60305401,101230.0,101220.0,0.5]
[1734128157393,0.049385,101220.0,101210.0,0.51]
[1734128157593,0.449085,101220.0,101210.0,0.51]
[1734128159884,0.0389,101220.0,101210.0,0.60544187]
[1734128160083,0.086182,101230.0,101210.0,0.96624187]
[1734128160298,0.086182,101230.0,101220.0,0.06413853]
[1734128160591,0.086182,101230.0,101220.0,0.12352353]
[1734128160992,0.049382,101230.0,101220.0,0.62352353]
[1734128161193,0.049382,101230.0,101220.0,0.62352434]
[1734128161697,0.45980435,101240.0,101230.0,0.01]
[1734128161898,0.45980435,101240.0,101230.0,0.10539118]
[1734128162295,0.45980435,101240.0,101230.0,1.71]
[1734128162802,0.60737369,101240.0,101230.0,1.88746127]
[1734128163293,0.60737369,101240.0,101230.0,0.68746127]
[1734128163806,0.60737369,101240.0,101230.0,1.71]
[1734128164101,0.60737369,101240.0,101230.0,0.51]
[1734128164894,0.78438782,101240.0,101230.0,0.51]
[1734128165302,0.879779,101240.0,101230.0,0.5]
[1734128165500,0.879779,101240.0,101220.0,0.67746127]
[1734128165693,0.8142995,101230.0,101220.0,0.67746127]
[1734128165894,0.75346951,101230.0,101220.0,0.91409621]
[1734128166194,0.75346951,101230.0,101220.0,0.67746127]
[1734128166394,0.93048364,101230.0,101220.0,0.67746127]
[1734128167197,1.02587482,101230.0,101220.0,0.67746127]
[1734128167700,0.93048364,101230.0,101220.0,0.67746127]
[1734128168995,0.93048364,101230.0,101220.0,0.5]
[1734128171105,0.81246347,101230.0,101220.0,0.5]
[1734128172603,0.90615582,101230.0,101220.0,0.5]
[1734128173099,0.75858648,101230.0,101220.0,0.5]
[1734128178306,0.62539413,101230.0,101220.0,0.5]
[1734128179500,0.58719413,101230.0,101220.0,0.5]
[1734128180007,0.58719413,101230.0,101220.0,1.7]
[1734128180595,0.58719413,101230.0,101220.0,1.80369235]
[1734128180802,0.22639413,101230.0,101220.0,1.80369235]
[1734128181008,0.22639413,101230.0,101220.0,2.21387735]
[1734128181209,0.17701413,101230.0,101220.0,2.21387735]
[1734128182408,0.17701413,101230.0,101220.0,2.74613355]
[1734128182607,0.08850261,101230.0,101220.0,3.02942348]
[1734128183000,0.08850261,101230.0,101220.0,2.74613355]
[1734128183202,0.08850261,101230.0,101220.0,3.02902074]
[1734128185710,0.08850261,101230.0,101220.0,3.1323898]
[1734128187305,0.08850261,101230.0,101220.0,3.13189263]
[1734128188106,0.08850261,101230.0,101220.0,2.89530622]
[1734128188107,0.10078349,101230.0,101220.0,2.89530622]
[1734128189402,0.20642519,101240.0,101230.0,0.01]
[1734128189709,0.20642519,101240.0,101230.0,1.40822947]
[1734128189710,0.0884217,101240.0,101230.0,1.40822947]
[1734128189904,0.11800349,101250.0,101240.0,0.049375]
[1734128190105,0.11800349,101250.0,101240.0,1.75679346]
[1734128190308,0.67567485,101260.0,101250.0,0.55937]
[1734128190613,0.16737049,101260.0,101250.0,1.19117354]
[1734128190812,0.16737049,101260.0,101250.0,1.23117354]
[1734128191013,0.16737049,101260.0,101250.0,1.27037354]
[1734128191202,0.11800349,101260.0,101250.0,1.27037354]
[1734128191401,0.75277085,101270.0,101260.0,0.049365]
[1734128191899,0.049365,101260.0,101250.0,0.59747919]
[1734128192302,0.049365,101260.0,101250.0,1.09747919]
[1734128194516,0.049865,101260.0,101250.0,1.09747919]
[1734128197112,0.049865,101260.0,101250.0,0.920168]
[1734128198416,0.049865,101260.0,101250.0,2.120168]
[1734128198614,0.410665,101260.0,101250.0,0.51]
[1734128198809,0.449865,101260.0,101250.0,0.51]
[1734128202214,0.56786849,101260.0,101250.0,0.51]
[1734128205223,0.71537285,101260.0,101250.0,0.51]
[1734128206421,0.71487285,101260.0,101250.0,0.51]
[1734128207216,0.77632019,101260.0,101250.0,0.51]
[1734128207724,1.13712019,101260.0,101250.0,0.51]
[1734128208424,1.0191167,101260.0,101250.0,0.51]
[1734128211825,1.19613083,101260.0,101250.0,0.51]
[1734128215325,1.04862647,101260.0,101250.0,0.51]
[1734128218434,1.07062067,101260.0,101250.0,0.51]
[1734128218726,1.11007381,101260.0,101250.0,0.5]
[1734128218940,0.04937,101250.0,101240.0,0.92372611]
[1734128219230,0.55141734,101250.0,101240.0,0.92372611]
[1734128221849,0.55141734,101250.0,101240.0,0.97310111]
[1734128222140,0.55141734,101250.0,101240.0,0.92372611]
[1734128222749,0.55141734,101250.0,101240.0,0.68731119]
[1734128222750,0.87595411,101250.0,101240.0,0.68731119]
[1734128223049,0.87595411,101250.0,101240.0,0.51]
[1734128223944,0.88563449,101250.0,101240.0,0.51]
[1734128224745,0.73811185,101250.0,101240.0,0.51]
[1734128225050,0.73811185,101250.0,101240.0,0.559375]
[1734128225250,0.73811185,101250.0,101240.0,0.73668619]
[1734128232950,0.67666451,101250.0,101240.0,0.79813353]
[1734128236547,0.59686451,101250.0,101240.0,0.85958087]
[1734128236754,0.18669451,101250.0,101240.0,0.75746968]
[1734128237153,0.18669451,101250.0,101240.0,1.11826968]
[1734128237550,0.17701413,101250.0,101240.0,1.11826968]
[1734128238260,0.18930312,101250.0,101240.0,1.11826968]
[1734128238661,0.18930312,101250.0,101240.0,2.31826968]
[1734128238848,0.17701413,101250.0,101240.0,2.31826968]
[1734128240362,0.18929364,101250.0,101240.0,2.31826968]
[1734128240959,0.17701413,101250.0,101240.0,2.31826968]